[Event "Live Chess"]
[Site "Chess.com"]
[Date "2023.05.21"]
[Round "-"]
[White "CroasArRheun"]
[Black "YrrriKharkiv"]
[Result "0-1"]
[WhiteElo "1842"]
[BlackElo "2034"]
[TimeControl "300"]
[EndTime "23:34:16 PDT"]
[Termination "YrrriKharkiv won by resignation"]

1. d4 {[%clk 0:04:58.3]} 1... Nf6 {[%clk 0:04:56.1]} 2. c4 {[%clk 0:04:57.3]}
2... c5 {[%clk 0:04:54.7]} 3. d5 {[%clk 0:04:56.5]} 3... b5 {[%clk 0:04:53.4]}
4. cxb5 {[%clk 0:04:55]} 4... a6 {[%clk 0:04:52.8]} 5. bxa6 {[%clk 0:04:54.8]}
5... Bxa6 {[%clk 0:04:51.8]} 6. Nc3 {[%clk 0:04:54.1]} 6... g6 {[%clk
0:04:50.7]} 7. e4 {[%clk 0:04:53]} 7... Bxf1 {[%clk 0:04:49]} 8. Kxf1 {[%clk
0:04:52.9]} 8... d6 {[%clk 0:04:48.4]} 9. Nf3 {[%clk 0:04:52.4]} 9... Bg7 {[%clk
0:04:47]} 10. g3 {[%clk 0:04:51.9]} 10... h5 {[%clk 0:04:46.2]} 11. Kg2 {[%clk
0:04:51.3]} 11... Nbd7 {[%clk 0:04:45.1]} 12. Rf1 {[%clk 0:04:50.4]} 12... Ng4
{[%clk 0:04:43.8]} 13. Bd2 {[%clk 0:04:45.1]} 13... Nge5 {[%clk 0:04:42.7]} 14.
Nxe5 {[%clk 0:04:35.9]} 14... Nxe5 {[%clk 0:04:42]} 15. f4 {[%clk 0:04:34.1]}
15... Nc4 {[%clk 0:04:34.8]} 16. Be1 {[%clk 0:04:28]} 16... Ne3+ {[%clk
0:04:33.1]} 0-1

[Event "Live Chess"]
[Site "Chess.com"]
[Date "2023.05.21"]
[Round "-"]
[White "diana21strabt"]
[Black "martynstanley"]
[Result "1-0"]
[WhiteElo "1707"]
[BlackElo "999"]
[TimeControl "300"]
[EndTime "23:34:22 PDT"]
[Termination "diana21strabt won by checkmate"]

1. e4 {[%clk 0:04:57.1]} 1... e6 {[%clk 0:04:58.7]} 2. d4 {[%clk 0:04:55.4]}
2... d5 {[%clk 0:04:57.6]} 3. Nc3 {[%clk 0:04:54.4]} 3... c5 {[%clk 0:04:56.7]}
4. dxc5 {[%clk 0:04:52.7]} 4... Bxc5 {[%clk 0:04:55]} 5. exd5 {[%clk 0:04:50.2]}
5... exd5 {[%clk 0:04:53.5]} 6. Qxd5 {[%clk 0:04:48]} 6... Qe7+ {[%clk
0:04:46.6]} 7. Be2 {[%clk 0:04:46.7]} 7... Nc6 {[%clk 0:04:42.7]} 8. Nf3 {[%clk
0:04:44.2]} 8... Be6 {[%clk 0:04:40.7]} 9. Qg5 {[%clk 0:04:40.1]} 9... f6 {[%clk
0:04:37.7]} 10. Qh5+ {[%clk 0:04:37.3]} 10... Kd8 {[%clk 0:04:36.6]} 11. Bf4
{[%clk 0:04:32.8]} 11... Bd6 {[%clk 0:04:33.5]} 12. O-O-O {[%clk 0:04:30.4]}
12... Kc8 {[%clk 0:04:31.2]} 13. Bxd6 {[%clk 0:04:28.7]} 13... Qd7 {[%clk
0:04:23.2]} 14. Qc5 {[%clk 0:04:24.6]} 14... g6 {[%clk 0:04:20.5]} 15. Rhe1
{[%clk 0:04:22.2]} 15... f5 {[%clk 0:04:14]} 16. Bb5 {[%clk 0:04:20.7]} 16... a6
{[%clk 0:04:11.5]} 17. Bxc6 {[%clk 0:04:19.1]} 17... bxc6 {[%clk 0:04:10.1]} 18.
Ne5 {[%clk 0:04:15.9]} 18... Qb7 {[%clk 0:04:06.8]} 19. Nxc6 {[%clk 0:04:14.3]}
19... Ne7 {[%clk 0:04:02.6]} 20. Nxe7+ {[%clk 0:04:12.8]} 20... Kd7 {[%clk
0:04:01.1]} 21. Be5+ {[%clk 0:04:08.9]} 21... Ke8 {[%clk 0:03:54.7]} 22. Bxh8
{[%clk 0:03:59.7]} 22... Qxe7 {[%clk 0:03:49]} 23. Qxe7+ {[%clk 0:03:54.9]}
23... Kxe7 {[%clk 0:03:48]} 24. Nd5+ {[%clk 0:03:53.1]} 24... Kf7 {[%clk
0:03:44.2]} 25. Bc3 {[%clk 0:03:50.2]} 25... Ra7 {[%clk 0:03:42.8]} 26. Nf4
{[%clk 0:03:47.1]} 26... Re7 {[%clk 0:03:40.1]} 27. Rxe6 {[%clk 0:03:44.3]}
27... Rxe6 {[%clk 0:03:37.3]} 28. Nxe6 {[%clk 0:03:43.3]} 28... Kxe6 {[%clk
0:03:36]} 29. Re1+ {[%clk 0:03:42.7]} 29... Kf7 {[%clk 0:03:33.9]} 30. Be5
{[%clk 0:03:39.5]} 30... Ke6 {[%clk 0:03:31.7]} 31. Bf4+ {[%clk 0:03:38.4]}
31... Kd5 {[%clk 0:03:30.2]} 32. Re7 {[%clk 0:03:37.1]} 32... h6 {[%clk
0:03:28.4]} 33. Bxh6 {[%clk 0:03:35.5]} 33... f4 {[%clk 0:03:26.5]} 34. Bxf4
{[%clk 0:03:33.7]} 34... a5 {[%clk 0:03:24.8]} 35. Re5+ {[%clk 0:03:31.4]} 35...
Kd6 {[%clk 0:03:23.2]} 36. Rxa5+ {[%clk 0:03:30.2]} 36... Ke6 {[%clk 0:03:20.9]}
37. Ra6+ {[%clk 0:03:29.2]} 37... Kf5 {[%clk 0:03:19.6]} 38. g3 {[%clk
0:03:28.3]} 38... g5 {[%clk 0:03:18.1]} 39. Bxg5 {[%clk 0:03:26.4]} 39... Kxg5
{[%clk 0:03:17.2]} 40. f4+ {[%clk 0:03:25]} 40... Kf5 {[%clk 0:03:16.1]} 41.
Ra5+ {[%clk 0:03:22]} 41... Ke4 {[%clk 0:03:14.3]} 42. h4 {[%clk 0:03:20.2]}
42... Kf3 {[%clk 0:03:13.9]} 43. h5 {[%clk 0:03:19.3]} 43... Kxg3 {[%clk
0:03:13.1]} 44. h6 {[%clk 0:03:18.4]} 44... Kg4 {[%clk 0:03:12.6]} 45. h7 {[%clk
0:03:17.5]} 45... Kf3 {[%clk 0:03:12]} 46. h8=Q {[%clk 0:03:15.5]} 46... Ke4
{[%clk 0:03:11.2]} 47. Qe5+ {[%clk 0:03:13.8]} 47... Kf3 {[%clk 0:03:10.2]} 48.
Ra3+ {[%clk 0:03:12.7]} 48... Kg4 {[%clk 0:03:07.3]} 49. Qg5# {[%clk 0:03:11.7]}
1-0

[Event "Live Chess"]
[Site "Chess.com"]
[Date "2023.05.21"]
[Round "-"]
[White "mirandaasilva"]
[Black "CeladonFish"]
[Result "1-0"]
[WhiteElo "1632"]
[BlackElo "1088"]
[TimeControl "300"]
[EndTime "23:34:45 PDT"]
[Termination "mirandaasilva won by resignation"]

1. g3 {[%clk 0:04:56.1]} 1... Nf6 {[%clk 0:04:58.6]} 2. Bg2 {[%clk 0:04:56]}
2... d5 {[%clk 0:04:58]} 3. d4 {[%clk 0:04:54.6]} 3... g6 {[%clk 0:04:57.2]} 4.
c4 {[%clk 0:04:52.7]} 4... Bg7 {[%clk 0:04:56.6]} 5. cxd5 {[%clk 0:04:52.6]}
5... Nxd5 {[%clk 0:04:54.6]} 6. Nf3 {[%clk 0:04:50.2]} 6... Bg4 {[%clk
0:04:51.7]} 7. Nc3 {[%clk 0:04:43.8]} 7... Nxc3 {[%clk 0:04:47.4]} 8. bxc3
{[%clk 0:04:43.7]} 8... Nc6 {[%clk 0:04:46.6]} 9. O-O {[%clk 0:04:39.7]} 9...
O-O {[%clk 0:04:44.9]} 10. Ne1 {[%clk 0:04:38.2]} 10... e5 {[%clk 0:04:40.5]}
11. d5 {[%clk 0:04:30.4]} 11... Ne7 {[%clk 0:04:38.1]} 12. Nc2 {[%clk
0:04:14.9]} 12... f5 {[%clk 0:04:10.8]} 13. Ne3 {[%clk 0:04:09.4]} 13... e4
{[%clk 0:04:08.4]} 14. Nxg4 {[%clk 0:04:07.5]} 14... fxg4 {[%clk 0:04:06.1]} 15.
Bxe4 {[%clk 0:03:57.5]} 15... Bxc3 {[%clk 0:04:02.6]} 16. Bh6 {[%clk 0:03:56.8]}
16... Rf6 {[%clk 0:03:55.6]} 17. Rc1 {[%clk 0:03:42.1]} 17... Ba5 {[%clk
0:03:48.6]} 18. Qb3 {[%clk 0:03:37.8]} 18... Rd6 {[%clk 0:03:39.4]} 19. Bf4
{[%clk 0:03:32.9]} 19... Rb6 {[%clk 0:03:33.6]} 20. Qa3 {[%clk 0:03:16.1]} 20...
Bb4 {[%clk 0:03:27.2]} 21. Bxc7 {[%clk 0:03:10.2]} 21... Bxa3 {[%clk 0:03:19.3]}
22. Bxd8 {[%clk 0:03:06.1]} 22... Bxc1 {[%clk 0:03:16.6]} 23. Bxb6 {[%clk
0:03:02.5]} 23... axb6 {[%clk 0:03:15.6]} 24. Rxc1 {[%clk 0:03:00.9]} 24... Rxa2
{[%clk 0:03:14]} 25. d6 {[%clk 0:02:58.9]} 25... Nc6 {[%clk 0:03:11.8]} 26. Bd5+
{[%clk 0:02:52.7]} 26... Kg7 {[%clk 0:03:05.3]} 27. Bxa2 {[%clk 0:02:52.6]} 1-0

[Event "Live Chess"]
[Site "Chess.com"]
[Date "2023.05.21"]
[Round "-"]
[White "Geomorph"]
[Black "Tushinskiy"]
[Result "1-0"]
[WhiteElo "1272"]
[BlackElo "2188"]
[TimeControl "300"]
[EndTime "23:34:47 PDT"]
[Termination "Geomorph won on time"]

1. e4 {[%clk 0:04:59.3]} 1... e5 {[%clk 0:04:44.4]} 2. Nf3 {[%clk 0:04:58.2]}
2... d6 {[%clk 0:04:42.8]} 3. d4 {[%clk 0:04:21.8]} 3... Bg4 {[%clk 0:04:38.6]}
4. dxe5 {[%clk 0:04:15.5]} 4... Nd7 {[%clk 0:04:36.1]} 5. exd6 {[%clk 0:04:10]}
5... Bxd6 {[%clk 0:04:36]} 6. Nc3 {[%clk 0:04:07.2]} 6... Qe7 {[%clk 0:04:32.3]}
7. h3 {[%clk 0:04:06.4]} 7... Bh5 {[%clk 0:04:30.2]} 8. Bd3 {[%clk 0:04:02.9]}
8... O-O-O {[%clk 0:04:06.8]} 9. Qe2 {[%clk 0:03:53.1]} 9... Ngf6 {[%clk
0:02:53.5]} 10. Bd2 {[%clk 0:03:51.5]} 10... Ne5 {[%clk 0:02:50.3]} 11. O-O-O
{[%clk 0:03:39.8]} 11... Bb4 {[%clk 0:02:42.7]} 12. g4 {[%clk 0:03:24.1]} 12...
Nxd3+ {[%clk 0:02:40]} 13. cxd3 {[%clk 0:03:14.7]} 1-0

[Event "Live Chess"]
[Site "Chess.com"]
[Date "2023.05.21"]
[Round "-"]
[White "Pandreq"]
[Black "AttackingSnowLeopard"]
[Result "0-1"]
[WhiteElo "1252"]
[BlackElo "2147"]
[TimeControl "300"]
[EndTime "23:35:11 PDT"]
[Termination "AttackingSnowLeopard won by resignation"]

1. d4 {[%clk 0:04:59.4]} 1... d5 {[%clk 0:04:57.5]} 2. c4 {[%clk 0:04:58.1]}
2... c6 {[%clk 0:04:56.7]} 3. Nc3 {[%clk 0:04:56.6]} 3... Nf6 {[%clk 0:04:55.9]}
4. cxd5 {[%clk 0:04:55.5]} 4... cxd5 {[%clk 0:04:54.2]} 5. Nf3 {[%clk 0:04:54]}
5... Nc6 {[%clk 0:04:53.5]} 6. Bg5 {[%clk 0:04:52.5]} 6... Ne4 {[%clk
0:04:51.6]} 7. Nxe4 {[%clk 0:04:49.6]} 7... dxe4 {[%clk 0:04:50.6]} 8. d5 {[%clk
0:04:28.5]} 8... exf3 {[%clk 0:04:38.3]} 9. dxc6 {[%clk 0:04:27.1]} 9... Qxd1+
{[%clk 0:04:37.9]} 10. Rxd1 {[%clk 0:04:25.5]} 10... fxe2 {[%clk 0:04:37.5]} 11.
Bxe2 {[%clk 0:04:23.6]} 11... bxc6 {[%clk 0:04:36.9]} 12. Bf3 {[%clk 0:04:16.7]}
12... Bd7 {[%clk 0:04:35.5]} 13. O-O {[%clk 0:04:15.5]} 13... f6 {[%clk
0:04:34.9]} 14. Bf4 {[%clk 0:04:06.9]} 14... e5 {[%clk 0:04:34.3]} 15. Be3
{[%clk 0:04:04.1]} 15... Bb4 {[%clk 0:04:32.3]} 16. a3 {[%clk 0:04:02]} 16...
Ba5 {[%clk 0:04:31.3]} 17. b4 {[%clk 0:03:56.2]} 17... Bb6 {[%clk 0:04:30.9]}
18. Rfe1 {[%clk 0:03:47.8]} 18... Bxe3 {[%clk 0:04:28.1]} 19. Rxe3 {[%clk
0:03:46.9]} 19... Ke7 {[%clk 0:04:27.7]} 20. Red3 {[%clk 0:03:45.7]} 20... Rhd8
{[%clk 0:04:25.9]} 21. h3 {[%clk 0:03:38.9]} 21... Be8 {[%clk 0:04:24.3]} 22.
Be4 {[%clk 0:03:31.6]} 22... g6 {[%clk 0:04:20.4]} 23. b5 {[%clk 0:03:23.4]}
23... Rxd3 {[%clk 0:04:16.1]} 24. Rxd3 {[%clk 0:03:22.1]} 24... Rd8 {[%clk
0:04:15.7]} 25. Rxd8 {[%clk 0:03:19.2]} 25... Kxd8 {[%clk 0:04:15.2]} 26. bxc6
{[%clk 0:03:11.6]} 26... Kc7 {[%clk 0:04:11.7]} 27. Kf1 {[%clk 0:03:05.2]} 27...
Bxc6 {[%clk 0:04:09.8]} 28. Bxc6 {[%clk 0:03:03.9]} 28... Kxc6 {[%clk
0:04:09.1]} 29. Ke2 {[%clk 0:03:02.9]} 29... Kd5 {[%clk 0:04:08]} 30. Kd3 {[%clk
0:03:02]} 30... e4+ {[%clk 0:04:07]} 31. Kc3 {[%clk 0:02:57.8]} 31... f5 {[%clk
0:04:05.9]} 32. a4 {[%clk 0:02:50.9]} 32... a5 {[%clk 0:04:03.5]} 33. g3 {[%clk
0:02:47.7]} 33... Kc5 {[%clk 0:04:02.5]} 34. h4 {[%clk 0:02:44.6]} 34... h6
{[%clk 0:04:01.8]} 35. h5 {[%clk 0:02:24.9]} 35... g5 {[%clk 0:04:00.7]} 36. Kb3
{[%clk 0:02:01.2]} 36... Kd4 {[%clk 0:03:58.8]} 37. Kc2 {[%clk 0:01:59.8]} 37...
Kc4 {[%clk 0:03:58]} 0-1

[Event "Live Chess"]
[Site "Chess.com"]
[Date "2023.05.21"]
[Round "-"]
[White "Ian-Morley"]
[Black "toxic_rabbit"]
[Result "0-1"]
[WhiteElo "978"]
[BlackElo "1998"]
[TimeControl "300"]
[EndTime "23:35:17 PDT"]
[Termination "toxic_rabbit won by resignation"]

1. e4 {[%clk 0:04:57.5]} 1... e6 {[%clk 0:04:59.2]} 2. d4 {[%clk 0:04:56.4]}
2... d5 {[%clk 0:04:58.5]} 3. e5 {[%clk 0:04:55.8]} 3... c5 {[%clk 0:04:56.7]}
4. c3 {[%clk 0:04:55.1]} 4... Nc6 {[%clk 0:04:56]} 5. Nf3 {[%clk 0:04:54.1]}
5... Qb6 {[%clk 0:04:54.6]} 6. Be2 {[%clk 0:04:41.4]} 6... cxd4 {[%clk
0:04:48.8]} 7. cxd4 {[%clk 0:04:35.5]} 7... Nge7 {[%clk 0:04:46.2]} 8. Na3
{[%clk 0:04:34.2]} 8... Nf5 {[%clk 0:04:42.9]} 9. Nc2 {[%clk 0:04:33.3]} 9...
Bd7 {[%clk 0:04:37.8]} 10. g4 {[%clk 0:04:29.7]} 10... Nh6 {[%clk 0:04:21]} 11.
Bxh6 {[%clk 0:04:27.9]} 11... gxh6 {[%clk 0:04:19.8]} 12. b3 {[%clk 0:04:27]}
12... Rc8 {[%clk 0:04:11.1]} 13. Rb1 {[%clk 0:04:22.8]} 13... Nb4 {[%clk
0:04:06.3]} 14. Nxb4 {[%clk 0:04:21.8]} 14... Bxb4+ {[%clk 0:04:05.3]} 15. Kf1
{[%clk 0:04:20.4]} 15... Rg8 {[%clk 0:03:55.4]} 16. h3 {[%clk 0:04:16.6]} 16...
Bb5 {[%clk 0:03:52.1]} 17. Bxb5+ {[%clk 0:04:14.7]} 17... Qxb5+ {[%clk
0:03:50.6]} 18. Qe2 {[%clk 0:04:13.9]} 18... Qxe2+ {[%clk 0:03:34.8]} 19. Kxe2
{[%clk 0:04:10]} 19... Rc2+ {[%clk 0:03:34.3]} 20. Kf1 {[%clk 0:03:55.7]} 20...
Rxa2 {[%clk 0:03:27.3]} 21. Kg2 {[%clk 0:03:54.4]} 21... Rc2 {[%clk 0:03:19.9]}
22. Ra1 {[%clk 0:03:51.1]} 22... a5 {[%clk 0:03:16.8]} 23. Rac1 {[%clk
0:03:49.7]} 23... Rc6 {[%clk 0:03:10.4]} 24. Rxc6 {[%clk 0:03:47.9]} 24... bxc6
{[%clk 0:03:09.2]} 25. Rc1 {[%clk 0:03:46.4]} 25... Kd7 {[%clk 0:03:08.7]} 26.
Kg3 {[%clk 0:03:41.2]} 26... Rc8 {[%clk 0:03:05]} 27. h4 {[%clk 0:03:38.7]}
27... c5 {[%clk 0:03:02.9]} 28. g5 {[%clk 0:03:33.8]} 28... cxd4 {[%clk
0:02:45.5]} 29. Nxd4 {[%clk 0:03:32.2]} 29... Rxc1 {[%clk 0:02:41.3]} 30. Nf3
{[%clk 0:03:22.4]} 30... Rc3 {[%clk 0:02:37.1]} 31. Kg4 {[%clk 0:03:20.7]} 31...
hxg5 {[%clk 0:02:35.6]} 32. Nxg5 {[%clk 0:03:19.4]} 32... h6 {[%clk 0:02:31.3]}
33. Nxf7 {[%clk 0:03:18.1]} 33... Bf8 {[%clk 0:02:26.1]} 34. h5 {[%clk
0:03:15.5]} 34... Ke7 {[%clk 0:02:24.2]} 35. Nd6 {[%clk 0:03:12.2]} 35... Rxb3
{[%clk 0:02:23.6]} 0-1

[Event "Live Chess"]
[Site "Chess.com"]
[Date "2023.05.21"]
[Round "-"]
[White "Long1968"]
[Black "amazinggoalkeeper"]
[Result "0-1"]
[WhiteElo "1015"]
[BlackElo "514"]
[TimeControl "300"]
[EndTime "23:35:25 PDT"]
[Termination "amazinggoalkeeper won on time"]

1. e4 {[%clk 0:04:58]} 1... e5 {[%clk 0:04:58.6]} 2. f4 {[%clk 0:04:55.4]} 2...
d6 {[%clk 0:04:46.8]} 3. Bc4 {[%clk 0:04:50.4]} 3... Nf6 {[%clk 0:04:43.7]} 4.
d4 {[%clk 0:04:45.6]} 4... Nxe4 {[%clk 0:04:37.9]} 5. Nf3 {[%clk 0:04:27.5]}
5... exd4 {[%clk 0:04:34.3]} 6. Qe2 {[%clk 0:04:17.1]} 6... Qe7 {[%clk
0:04:30.7]} 7. Nxd4 {[%clk 0:03:52.6]} 7... Nc5 {[%clk 0:04:15.4]} 8. Nb5 {[%clk
0:03:31.4]} 8... Ne6 {[%clk 0:04:11.2]} 9. f5 {[%clk 0:02:54.3]} 9... c6 {[%clk
0:04:04]} 10. fxe6 {[%clk 0:02:02.6]} 10... cxb5 {[%clk 0:03:59.7]} 11. Bxb5+
{[%clk 0:01:49.8]} 11... Kd8 {[%clk 0:03:59.6]} 12. exf7 {[%clk 0:01:36.3]}
12... Qxf7 {[%clk 0:03:59.5]} 13. Bg5+ {[%clk 0:01:25.5]} 13... Be7 {[%clk
0:03:57.9]} 14. Rf1 {[%clk 0:01:00]} 14... Qe6 {[%clk 0:03:40.5]} 15. Bxe7+
{[%clk 0:00:19.1]} 15... Kxe7 {[%clk 0:03:31.3]} 16. Nc3 {[%clk 0:00:11.7]}
16... Qxe2+ {[%clk 0:03:19.9]} 17. Kxe2 {[%clk 0:00:08.6]} 17... Re8 {[%clk
0:03:19.8]} 0-1

[Event "Live Chess"]
[Site "Chess.com"]
[Date "2023.05.21"]
[Round "-"]
[White "nigelst"]
[Black "Nazar_777"]
[Result "0-1"]
[WhiteElo "1710"]
[BlackElo "1600"]
[TimeControl "300"]
[EndTime "23:35:42 PDT"]
[Termination "Nazar_777 won on time"]

1. e4 {[%clk 0:04:56.6]} 1... e6 {[%clk 0:04:52.2]} 2. d4 {[%clk 0:04:55.1]}
2... a6 {[%clk 0:04:51.3]} 3. Nc3 {[%clk 0:04:51.6]} 3... h5 {[%clk 0:04:50.6]}
4. Nf3 {[%clk 0:04:49.9]} 4... c5 {[%clk 0:04:49.6]} 5. Bd3 {[%clk 0:04:43.5]}
5... cxd4 {[%clk 0:04:48.6]} 6. Nxd4 {[%clk 0:04:41.9]} 6... Be7 {[%clk
0:04:47.8]} 7. O-O {[%clk 0:04:38.8]} 7... Qc7 {[%clk 0:04:47.2]} 8. Nf3 {[%clk
0:04:30.2]} 8... Nf6 {[%clk 0:04:46.1]} 9. h3 {[%clk 0:04:25]} 9... Nc6 {[%clk
0:04:44.6]} 10. Re1 {[%clk 0:04:22.3]} 10... b5 {[%clk 0:04:42.8]} 11. e5 {[%clk
0:04:17.1]} 11... Ng8 {[%clk 0:04:34.4]} 12. a3 {[%clk 0:04:12.8]} 12... Nh6
{[%clk 0:04:33]} 13. Qe2 {[%clk 0:04:08.9]} 13... g6 {[%clk 0:04:32]} 14. Be3
{[%clk 0:03:30.2]} 14... Bb7 {[%clk 0:04:30.3]} 15. Qd2 {[%clk 0:03:27.7]} 15...
Nf5 {[%clk 0:04:28]} 16. Bxf5 {[%clk 0:03:25.7]} 16... gxf5 {[%clk 0:04:26.9]}
17. Bg5 {[%clk 0:03:20.5]} 17... Rg8 {[%clk 0:04:25]} 18. Bxe7 {[%clk
0:03:16.6]} 18... Kxe7 {[%clk 0:04:23.4]} 19. Rad1 {[%clk 0:02:52.4]} 19... Ke8
{[%clk 0:04:21.3]} 20. Qd6 {[%clk 0:02:49.3]} 20... Qxd6 {[%clk 0:04:12.4]} 21.
Rxd6 {[%clk 0:02:37.8]} 21... Rd8 {[%clk 0:04:11]} 22. Red1 {[%clk 0:02:22.2]}
22... b4 {[%clk 0:04:07.8]} 23. axb4 {[%clk 0:02:19.7]} 23... Nxb4 {[%clk
0:04:06.6]} 24. Nh4 {[%clk 0:02:06.3]} 24... Nd5 {[%clk 0:04:00.9]} 25. Nxd5
{[%clk 0:02:01.8]} 25... Bxd5 {[%clk 0:03:58.9]} 26. b3 {[%clk 0:01:58.2]} 26...
Ke7 {[%clk 0:03:55.7]} 27. c4 {[%clk 0:01:55.3]} 27... Bc6 {[%clk 0:03:52.7]}
28. R6d3 {[%clk 0:01:35.8]} 28... f6 {[%clk 0:03:50.4]} 29. exf6+ {[%clk
0:01:33.8]} 29... Kxf6 {[%clk 0:03:49]} 30. Nf3 {[%clk 0:01:30.7]} 30... Rg6
{[%clk 0:03:44.3]} 31. Kf1 {[%clk 0:01:26.6]} 31... Rdg8 {[%clk 0:03:42.2]} 32.
g3 {[%clk 0:01:23.8]} 32... Be4 {[%clk 0:03:35.9]} 33. Re3 {[%clk 0:01:21.3]}
33... Bc2 {[%clk 0:03:21.3]} 34. Rd2 {[%clk 0:01:18.7]} 34... Be4 {[%clk
0:03:04.4]} 35. Rxd7 {[%clk 0:01:08.1]} 35... Bxf3 {[%clk 0:02:57]} 36. Rxf3
{[%clk 0:01:06.4]} 36... h4 {[%clk 0:02:55.9]} 37. gxh4 {[%clk 0:01:00.3]} 37...
Rg1+ {[%clk 0:02:45.3]} 38. Ke2 {[%clk 0:00:58.9]} 38... Rb8 {[%clk 0:02:37]}
39. h5 {[%clk 0:00:45.8]} 39... Rb6 {[%clk 0:02:33.1]} 40. h6 {[%clk 0:00:42.9]}
40... Rg8 {[%clk 0:02:23.7]} 41. h7 {[%clk 0:00:40.1]} 41... Rh8 {[%clk
0:02:22.4]} 42. Rg3 {[%clk 0:00:38.9]} 42... Rbb8 {[%clk 0:02:16.6]} 43. Rgg7
{[%clk 0:00:29]} 43... Ke5 {[%clk 0:02:14]} 44. Rb7 {[%clk 0:00:22.4]} 44...
Rxb7 {[%clk 0:02:08.9]} 45. Rxb7 {[%clk 0:00:20.6]} 45... Ke4 {[%clk 0:02:08.1]}
46. Rg7 {[%clk 0:00:18.4]} 46... e5 {[%clk 0:02:06.8]} 47. h4 {[%clk 0:00:16.9]}
47... f4 {[%clk 0:02:04.9]} 48. f3+ {[%clk 0:00:16]} 48... Kd4 {[%clk
0:02:02.7]} 49. h5 {[%clk 0:00:15.1]} 49... e4 {[%clk 0:02:01.3]} 50. fxe4
{[%clk 0:00:13.7]} 50... Kxe4 {[%clk 0:02:00.4]} 51. h6 {[%clk 0:00:13.6]} 51...
f3+ {[%clk 0:01:59.1]} 52. Kf2 {[%clk 0:00:12.8]} 52... Kf4 {[%clk 0:01:57.5]}
53. Rf7+ {[%clk 0:00:11.8]} 53... Kg5 {[%clk 0:01:53.9]} 54. Rxf3 {[%clk
0:00:11.7]} 54... Kxh6 {[%clk 0:01:53]} 55. Rh3+ {[%clk 0:00:09.8]} 55... Kg6
{[%clk 0:01:51.3]} 56. Ke3 {[%clk 0:00:08.7]} 56... Kf6 {[%clk 0:01:48.9]} 57.
Kd4 {[%clk 0:00:07.5]} 57... Ke6 {[%clk 0:01:48]} 58. Kc5 {[%clk 0:00:06.4]}
58... Ke5 {[%clk 0:01:45.7]} 59. Kb6 {[%clk 0:00:05.3]} 59... Kd4 {[%clk
0:01:43.2]} 60. Kxa6 {[%clk 0:00:05.2]} 60... Kc5 {[%clk 0:01:41.1]} 61. Rh5+
{[%clk 0:00:02.9]} 61... Kb4 {[%clk 0:01:39.7]} 62. Rb5+ {[%clk 0:00:01.8]}
62... Kc3 {[%clk 0:01:38.5]} 63. c5 {[%clk 0:00:00.8]} 63... Kd4 {[%clk
0:01:37.3]} 64. c6 {[%clk 0:00:00.7]} 64... Ke4 {[%clk 0:01:34.8]} 65. Kb6
{[%clk 0:00:00.6]} 65... Kd3 {[%clk 0:01:32.7]} 66. Kc7 {[%clk 0:00:00.5]} 66...
Kc2 {[%clk 0:01:31.1]} 67. Kd7 {[%clk 0:00:00.4]} 67... Kb2 {[%clk 0:01:29.9]}
68. c7 {[%clk 0:00:00.3]} 68... Rxh7+ {[%clk 0:01:28.9]} 0-1

[Event "Live Chess"]
[Site "Chess.com"]
[Date "2023.05.21"]
[Round "-"]
[White "HoarseyHorsey"]
[Black "BillythekidFellowes"]
[Result "0-1"]
[WhiteElo "1430"]
[BlackElo "2021"]
[TimeControl "300"]
[EndTime "23:35:47 PDT"]
[Termination "BillythekidFellowes won by resignation"]

1. d4 {[%clk 0:04:59.1]} 1... e6 {[%clk 0:04:53]} 2. c4 {[%clk 0:04:58.1]} 2...
d5 {[%clk 0:04:38]} 3. Nc3 {[%clk 0:04:55.4]} 3... Nf6 {[%clk 0:04:37.2]} 4.
cxd5 {[%clk 0:04:52.8]} 4... exd5 {[%clk 0:04:36.6]} 5. Bg5 {[%clk 0:04:51.5]}
5... c6 {[%clk 0:04:35.9]} 6. e3 {[%clk 0:04:49.4]} 6... Qb6 {[%clk 0:04:34.9]}
7. Qd2 {[%clk 0:04:43.9]} 7... Bb4 {[%clk 0:04:33]} 8. Nge2 {[%clk 0:04:41.6]}
8... Ne4 {[%clk 0:04:32.3]} 9. Qc2 {[%clk 0:04:29.5]} 9... Bf5 {[%clk
0:04:29.7]} 10. Bf4 {[%clk 0:04:24.1]} 10... Nxc3 {[%clk 0:04:22.6]} 11. Qxf5
{[%clk 0:04:22.2]} 11... Ne4+ {[%clk 0:04:21.2]} 12. Kd1 {[%clk 0:04:17]} 12...
Nxf2+ {[%clk 0:04:15.1]} 13. Kc2 {[%clk 0:04:13.1]} 13... Nxh1 {[%clk
0:04:13.6]} 14. Qe5+ {[%clk 0:04:09.5]} 14... Kf8 {[%clk 0:04:10.6]} 15. Nc3
{[%clk 0:04:00.2]} 15... Nd7 {[%clk 0:04:07.6]} 16. Qg5 {[%clk 0:03:51]} 16...
Bxc3 {[%clk 0:04:01.4]} 17. bxc3 {[%clk 0:03:49.1]} 17... Nf6 {[%clk 0:03:59.2]}
18. Be5 {[%clk 0:03:40.2]} 18... h6 {[%clk 0:03:55.3]} 19. Qf4 {[%clk
0:03:34.6]} 19... Ne4 {[%clk 0:03:49.5]} 20. Bd6+ {[%clk 0:03:26.2]} 20... Nxd6
{[%clk 0:03:34.3]} 21. Qxd6+ {[%clk 0:03:23.6]} 21... Kg8 {[%clk 0:03:33]} 22.
Bd3 {[%clk 0:03:16.7]} 22... Nf2 {[%clk 0:03:11.8]} 23. Rf1 {[%clk 0:03:07]}
23... Nxd3 {[%clk 0:02:52.4]} 24. Kxd3 {[%clk 0:03:06.9]} 24... Qb5+ {[%clk
0:02:50.3]} 0-1